bitfinex/quotes_BTCUSD_20250908
["timestamp","ask_amount","ask_price","bid_price","bid_amount"]
[1757336551601,0.54462928,112110.0,112100.0,0.69139599]
[1757336551824,0.18352785,112110.0,112100.0,0.69139599]
[1757336552238,0.54462928,112110.0,112100.0,0.69139599]
[1757336553113,0.54462928,112110.0,112100.0,0.69039599]
[1757336553524,0.54462928,112110.0,112100.0,0.69139599]
[1757336555190,0.18352785,112110.0,112100.0,0.69139599]
[1757336555593,0.54462928,112110.0,112100.0,0.69139599]
[1757336555733,0.53958928,112110.0,112100.0,0.69139599]
[1757336556687,0.54259928,112110.0,112100.0,0.69139599]
[1757336557287,0.18352785,112110.0,112100.0,0.69139599]
[1757336557515,0.90573071,112110.0,112100.0,0.69139599]
[1757336557739,0.90370071,112110.0,112100.0,0.69139599]
[1757336557907,0.90573071,112110.0,112100.0,0.64235599]
[1757336558080,0.90573071,112110.0,112100.0,0.71083599]
[1757336559373,0.18352785,112110.0,112100.0,0.71083599]
[1757336559778,0.90573071,112110.0,112100.0,0.71083599]
[1757336560543,0.54259928,112110.0,112100.0,0.76083599]
[1757336560752,0.17848785,112110.0,112100.0,0.76083599]
[1757336560957,0.18149785,112110.0,112100.0,0.76083599]
[1757336561162,0.90370071,112110.0,112100.0,0.76083599]
[1757336562496,0.90573071,112110.0,112100.0,0.76083599]
[1757336562914,0.90370071,112110.0,112100.0,0.76083599]
[1757336563380,0.17848785,112110.0,112100.0,0.76083599]
[1757336563603,0.90370071,112110.0,112100.0,0.76083599]
[1757336564894,0.18149785,112110.0,112100.0,0.76083599]
[1757336565110,0.90370071,112110.0,112100.0,0.76083599]
[1757336566001,0.18149785,112110.0,112100.0,0.76083599]
[1757336566316,0.90573071,112110.0,112100.0,0.76083599]
[1757336570350,0.54462928,112110.0,112100.0,0.76083599]
[1757336572578,0.90573071,112110.0,112100.0,0.76083599]
[1757336573316,0.90573071,112110.0,112100.0,0.76095599]
[1757336573522,0.90573071,112110.0,112100.0,0.76091599]
[1757336573962,0.90573071,112110.0,112100.0,0.56139599]
[1757336574148,0.18352785,112110.0,112100.0,0.71091599]
[1757336574404,0.90573071,112110.0,112100.0,0.71091599]
[1757336576978,0.18352785,112110.0,112100.0,0.71091599]
[1757336577195,0.90573071,112110.0,112100.0,0.71091599]
[1757336579902,0.90573071,112110.0,112100.0,0.56139599]
[1757336580120,0.90573071,112110.0,112100.0,0.71099599]
[1757336580548,0.90573071,112110.0,112100.0,0.56139599]
[1757336580730,0.90573071,112110.0,112100.0,0.71099599]
[1757336583155,0.54462928,112110.0,112100.0,0.71099599]
[1757336583685,0.54462928,112110.0,112100.0,0.72885599]
[1757336583869,0.54462928,112110.0,112100.0,0.71099599]
[1757336584741,0.18352785,112110.0,112100.0,0.71099599]
[1757336585124,0.54462928,112110.0,112100.0,0.71099599]
[1757336588992,0.18352785,112110.0,112100.0,0.71099599]
[1757336589226,0.54462928,112110.0,112100.0,0.71099599]
[1757336590631,0.18352785,112110.0,112100.0,0.71099599]
[1757336591085,0.54462928,112110.0,112100.0,0.71099599]
[1757336591523,0.18352785,112110.0,112100.0,0.71099599]
[1757336591729,0.54462928,112110.0,112100.0,0.71099599]
[1757336592200,0.18352785,112110.0,112100.0,0.71099599]
[1757336592352,0.54462928,112110.0,112100.0,0.71099599]
[1757336594854,0.18352785,112110.0,112100.0,0.71099599]
[1757336595075,0.54462928,112110.0,112100.0,0.71099599]
[1757336596011,0.57139911,112110.0,112100.0,0.71099599]
[1757336600579,0.93250054,112110.0,112100.0,0.71099599]
[1757336608487,0.93246284,112110.0,112100.0,0.71099599]
[1757336610538,0.93236472,112110.0,112100.0,0.71099599]
[1757336615491,0.93236472,112110.0,112100.0,0.56139599]
[1757336615899,0.93236472,112110.0,112100.0,0.71059599]
[1757336616482,0.21019956,112110.0,112100.0,0.71059599]
[1757336616698,0.93236472,112110.0,112100.0,0.71059599]
[1757336620772,0.57128214,112110.0,112100.0,0.71059599]
[1757336620977,0.21019956,112110.0,112100.0,0.71059599]
[1757336621189,0.93236472,112110.0,112100.0,0.71059599]
[1757336622701,0.21019956,112110.0,112100.0,0.71059599]
[1757336622921,0.93236472,112110.0,112100.0,0.71059599]
[1757336624853,0.93236472,112110.0,112100.0,0.83120811]
[1757336624854,0.17839621,112110.0,112100.0,0.83120811]
[1757336625079,0.98243838,112130.0,112120.0,0.45]
[1757336625299,0.58237626,112130.0,112120.0,0.56285481]
[1757336625538,0.58237626,112130.0,112120.0,0.71241481]
[1757336626159,0.58237626,112130.0,112120.0,0.74789965]
[1757336627760,0.58237626,112130.0,112120.0,0.59833965]
[1757336627961,0.40401187,112130.0,112120.0,0.96189965]
[1757336628231,0.40401187,112130.0,112120.0,1.05013965]
[1757336628399,0.40401187,112130.0,112120.0,1.05213965]
[1757336628948,0.40401187,112130.0,112120.0,1.05513965]
[1757336629117,0.58237626,112130.0,112120.0,1.05513965]
[1757336629329,0.40401187,112130.0,112120.0,1.05513965]
[1757336629567,0.39590826,112130.0,112120.0,1.05513965]
[1757336629705,0.57427265,112130.0,112120.0,1.05513965]
[1757336629910,0.39590826,112130.0,112120.0,1.05513965]
[1757336630308,0.27690751,112150.0,112140.0,0.6]
[1757336630548,0.27690751,112150.0,112140.0,0.91015599]
[1757336630980,0.27690751,112150.0,112140.0,0.76039599]
[1757336631119,0.27690751,112150.0,112140.0,0.91015599]
[1757336631482,0.27737104,112150.0,112140.0,0.93691147]
[1757336632087,0.28037104,112150.0,112140.0,0.93691147]
[1757336635044,0.27737104,112150.0,112140.0,0.93691147]
[1757336635251,0.00046353,112150.0,112140.0,0.93791147]
[1757336635504,0.18774094,112150.0,112140.0,0.93791147]
[1757336635908,0.18774094,112150.0,112140.0,0.93695147]
[1757336636538,0.18774094,112150.0,112140.0,0.93795147]
[1757336637751,0.18774094,112150.0,112140.0,0.93791147]
[1757336637923,0.18774094,112150.0,112140.0,0.93787147]
[1757336638783,0.18774094,112150.0,112140.0,0.78815147]
[1757336638994,0.18774094,112150.0,112140.0,0.93787147]
[1757336639618,0.18774094,112150.0,112140.0,1.20107147]
[1757336643338,0.18774094,112150.0,112140.0,1.20103147]
[1757336644966,0.54882352,112150.0,112140.0,1.05135147]
[1757336645137,0.55204352,112150.0,112140.0,1.20103147]
[1757336645600,0.54882352,112150.0,112140.0,1.20103147]
[1757336646302,0.18774094,112150.0,112140.0,1.20103147]
[1757336646606,0.54882352,112150.0,112140.0,1.20103147]
[1757336647038,0.54882352,112150.0,112140.0,1.05135147]
[1757336647240,0.18774094,112150.0,112140.0,1.20119147]
[1757336647457,0.54882352,112150.0,112140.0,1.20119147]
[1757336647669,0.55204352,112150.0,112140.0,1.20127147]
[1757336648544,0.55408352,112150.0,112140.0,1.20127147]
[1757336649027,0.55408352,112150.0,112140.0,1.00135147]
[1757336649180,0.55408352,112150.0,112140.0,1.12451599]
[1757336651081,0.19300094,112150.0,112140.0,1.12451599]
[1757336651314,0.55408352,112150.0,112140.0,1.12451599]
[1757336651509,0.55408352,112150.0,112140.0,0.86131599]
[1757336651639,0.19300094,112150.0,112140.0,0.86131599]
[1757336651859,0.55408352,112150.0,112140.0,0.86131599]
[1757336652071,0.55204352,112150.0,112140.0,0.86131599]
[1757336652489,0.55204352,112150.0,112140.0,0.66131599]
[1757336652721,0.55408352,112150.0,112140.0,0.66131599]
[1757336653065,0.19300094,112150.0,112140.0,0.66131599]
[1757336653267,0.55408352,112150.0,112140.0,0.66131599]
[1757336653480,0.17869901,112150.0,112140.0,1.19545481]
[1757336653681,0.17869901,112150.0,112140.0,1.29010481]
[1757336653865,0.17869901,112150.0,112140.0,1.30787481]
[1757336656621,0.17869901,112150.0,112140.0,1.34799077]
[1757336660264,0.17869901,112150.0,112140.0,1.37474408]
[1757336660494,0.17878983,112160.0,112140.0,1.63794408]
[1757336660682,0.17870079,112170.0,112160.0,0.96093882]
[1757336660927,0.17870079,112170.0,112160.0,1.20277481]
[1757336661118,0.17870079,112170.0,112160.0,1.24479481]
[1757336661319,0.17874113,112190.0,112160.0,1.24479481]
[1757336661320,0.18765458,112190.0,112180.0,0.62093882]
[1757336661446,0.18765458,112190.0,112180.0,0.93125481]
[1757336661661,0.18765458,112190.0,112180.0,0.71031599]
[1757336662328,0.1787604,112200.0,112190.0,0.07093882]
[1757336662505,0.1787604,112200.0,112190.0,0.2919994]
[1757336662719,0.1787604,112200.0,112190.0,0.3419994]
[1757336662924,0.1839504,112200.0,112190.0,0.4919994]
[1757336663608,0.1839504,112200.0,112190.0,0.5098494]
[1757336663808,0.1839504,112200.0,112190.0,0.4919994]
[1757336664412,0.54503298,112200.0,112190.0,0.4919994]
[1757336665036,0.1819204,112200.0,112190.0,0.4919994]
[1757336665237,0.1839504,112200.0,112190.0,0.4919994]
[1757336665498,0.1849504,112200.0,112190.0,0.4919994]
[1757336665701,0.1829204,112200.0,112190.0,0.4919994]
[1757336666636,0.1849504,112200.0,112190.0,0.4919994]
[1757336666848,0.54603298,112200.0,112190.0,0.2919994]
[1757336667050,0.90711556,112200.0,112190.0,0.2919994]
[1757336667251,0.178269,112190.0,112180.0,0.21844]
[1757336667480,0.18421445,112190.0,112180.0,8.375e-05]
[1757336667706,0.54454158,112190.0,112180.0,0.15000375]
[1757336667916,0.183459,112190.0,112180.0,0.15000375]
[1757336668152,0.178269,112190.0,112180.0,0.64191974]
[1757336668506,0.181429,112190.0,112180.0,0.64191974]
[1757336668836,0.54454158,112190.0,112180.0,0.64191974]
[1757336669057,0.54454158,112190.0,112180.0,0.64291974]
[1757336669263,0.183459,112190.0,112180.0,0.64291974]
[1757336669471,0.178269,112190.0,112180.0,0.64291974]
[1757336670327,0.53935158,112190.0,112180.0,0.64291974]
[1757336670462,0.53872912,112190.0,112180.0,0.64291974]
[1757336671550,0.54391912,112190.0,112180.0,0.64291974]
[1757336672047,0.53872912,112190.0,112180.0,0.64291974]
[1757336674195,0.178269,112190.0,112180.0,0.64291974]
[1757336674394,0.53872912,112190.0,112180.0,0.64291974]
[1757336676902,0.54188912,112190.0,112180.0,0.64291974]
[1757336678071,0.54391912,112190.0,112180.0,0.39291974]
[1757336678401,0.90234924,112190.0,112180.0,0.44291974]
[1757336678607,0.54188912,112190.0,112180.0,0.44291974]
[1757336679135,0.90437924,112190.0,112180.0,0.44291974]
[1757336679715,0.183459,112190.0,112180.0,0.44291974]
[1757336679937,0.90437924,112190.0,112180.0,0.44291974]
[1757336680138,0.54391912,112190.0,112180.0,0.44291974]
[1757336680686,0.90437924,112190.0,112180.0,0.44291974]
[1757336681194,0.54391912,112190.0,112180.0,0.44291974]
[1757336682195,0.181429,112190.0,112180.0,0.44291974]
[1757336682435,0.54391912,112190.0,112180.0,0.44291974]
[1757336684072,0.54391912,112190.0,112180.0,0.46076974]
[1757336684222,0.54391912,112190.0,112180.0,0.44291974]
[1757336686454,0.183459,112190.0,112180.0,0.44291974]
[1757336686693,0.90437924,112190.0,112180.0,0.09299974]
[1757336686910,0.90437924,112190.0,112180.0,0.15076375]
[1757336690550,0.54391912,112190.0,112180.0,0.15076375]
[1757336694592,0.183459,112190.0,112180.0,0.15076375]
[1757336694810,0.178269,112190.0,112180.0,0.29267974]
[1757336695063,0.181419,112190.0,112180.0,0.29267974]
[1757336695272,0.54187912,112190.0,112180.0,0.29267974]
[1757336695824,0.181419,112190.0,112180.0,0.29267974]
[1757336696028,0.54187912,112190.0,112180.0,0.29267974]
[1757336696796,0.181419,112190.0,112180.0,0.29267974]
[1757336697376,0.178269,112190.0,112180.0,0.29267974]
[1757336698937,0.181419,112190.0,112180.0,0.29267974]
[1757336699681,0.183399,112190.0,112180.0,0.29267974]
[1757336700764,0.54385912,112190.0,112180.0,0.29267974]
[1757336701690,0.183399,112190.0,112180.0,0.29267974]
[1757336701996,0.54385912,112190.0,112180.0,0.29267974]
[1757336702629,0.183399,112190.0,112180.0,0.29267974]
[1757336703047,0.181419,112190.0,112180.0,0.29267974]
[1757336703468,0.183399,112190.0,112180.0,0.29267974]
[1757336705214,0.181419,112190.0,112180.0,0.29267974]
[1757336705631,0.178269,112190.0,112180.0,0.29267974]
[1757336705916,0.181419,112190.0,112180.0,0.29267974]
[1757336706746,0.178269,112190.0,112180.0,0.44267974]
[1757336710788,0.53872912,112190.0,112180.0,0.64267974]
[1757336711537,0.178269,112190.0,112180.0,0.64267974]
[1757336711748,0.178269,112190.0,112180.0,0.66361856]
[1757336711922,0.16874072,112190.0,112180.0,0.70547856]
[1757336718411,0.16874072,112190.0,112180.0,0.70447856]
[1757336718845,0.16874072,112190.0,112180.0,0.55479856]
[1757336719035,0.16874072,112190.0,112180.0,0.70559856]
[1757336719187,0.17474072,112190.0,112180.0,0.70559856]
[1757336719739,0.17474072,112190.0,112180.0,0.70459856]
[1757336719971,0.16874072,112190.0,112180.0,0.70459856]
[1757336720418,0.17374072,112190.0,112180.0,0.70459856]
[1757336720629,0.53420084,112190.0,112180.0,0.73134141]
[1757336721137,0.17374072,112190.0,112180.0,0.73134141]
[1757336721349,0.53420084,112190.0,112180.0,0.73134141]
[1757336722136,0.52920084,112190.0,112180.0,0.73134141]
[1757336722287,0.16874072,112190.0,112180.0,0.73134141]
[1757336722695,0.17374072,112190.0,112180.0,0.73134141]
[1757336724859,0.53420084,112190.0,112180.0,0.51874259]
[1757336725072,0.89770096,112190.0,112180.0,0.66842259]
[1757336725301,0.53724084,112190.0,112180.0,0.24199974]
[1757336725506,0.53920084,112190.0,112180.0,0.64167974]
[1757336725710,0.53724084,112190.0,112180.0,0.64167974]
[1757336727848,0.17374072,112190.0,112180.0,0.98167974]
[1757336728062,0.53420084,112190.0,112180.0,0.98167974]
[1757336728479,0.53724084,112190.0,112180.0,0.98167974]
[1757336729211,0.53724084,112190.0,112180.0,0.99952974]
[1757336732272,0.1787604,112200.0,112180.0,0.99952974]
[1757336732476,0.18760345,112240.0,112230.0,0.61093882]
[1757336732764,0.18760345,112240.0,112230.0,1.02196]
[1757336732977,0.55283397,112240.0,112230.0,0.53232]
[1757336733192,0.0004,112240.0,112230.0,0.90289882]
[1757336733603,0.17858959,112240.0,112230.0,0.92963356]
[1757336733804,0.17858959,112240.0,112230.0,1.12007731]
[1757336734028,0.53882011,112240.0,112230.0,1.09913849]
[1757336734232,0.54186011,112240.0,112230.0,1.26967731]
[1757336734851,0.54186011,112240.0,112230.0,1.12007731]
[1757336735056,0.54186011,112240.0,112230.0,1.26967731]
[1757336735057,0.54382011,112240.0,112230.0,1.26967731]
[1757336735251,0.54982011,112240.0,112230.0,1.27067731]
[1757336736707,0.54786011,112240.0,112230.0,1.27067731]
[1757336736844,0.18458959,112240.0,112230.0,1.27067731]
[1757336737060,0.54482011,112240.0,112230.0,1.27067731]
[1757336737319,0.53020338,112240.0,112230.0,1.27067731]
[1757336737632,0.16997286,112240.0,112230.0,1.27067731]
[1757336738265,0.53020338,112240.0,112230.0,1.27067731]
[1757336739213,0.16997286,112240.0,112230.0,1.27067731]
[1757336739414,0.17301286,112240.0,112230.0,0.90013849]
[1757336739630,0.89821811,112240.0,112230.0,0.09625849]
[1757336739963,0.89821811,112240.0,112230.0,0.31095974]
[1757336739964,0.17497286,112240.0,112230.0,0.31095974]
[1757336740169,0.53798759,112240.0,112230.0,0.31095974]
[1757336740370,0.53520338,112240.0,112230.0,0.31095974]
[1757336741204,0.17497286,112240.0,112230.0,0.36095974]
[1757336741400,0.53020338,112240.0,112230.0,0.36095974]
[1757336741844,0.16997286,112240.0,112230.0,0.38189856]
[1757336742051,0.16997286,112240.0,112230.0,0.72189856]
[1757336742271,0.53020338,112240.0,112230.0,0.72189856]
[1757336742893,0.16997286,112240.0,112230.0,0.72189856]
[1757336743099,0.16997286,112240.0,112230.0,0.74863229]
[1757336744538,0.14909206,112240.0,112230.0,0.74863229]
[1757336744922,0.50896798,112240.0,112230.0,0.74863229]
[1757336745354,0.1341209,112240.0,112230.0,0.74863229]
[1757336745544,0.49435142,112240.0,112230.0,0.74863229]
[1757336745744,0.1341209,112240.0,112230.0,0.74863229]
[1757336745940,0.49435142,112240.0,112230.0,0.74863229]
[1757336746103,0.49739142,112240.0,112230.0,0.74863229]
[1757336747182,0.49739142,112240.0,112230.0,0.59911229]
[1757336747408,0.49739142,112240.0,112230.0,0.74863229]
[1757336748701,0.49435142,112240.0,112230.0,0.74863229]
[1757336750914,0.1341209,112240.0,112230.0,0.74863229]
[1757336751065,0.49435142,112240.0,112230.0,0.74863229]
[1757336751280,0.1351209,112240.0,112230.0,0.74863229]
[1757336759307,0.14299511,112240.0,112230.0,0.36095974]
[1757336759548,0.50322563,112240.0,112230.0,0.36095974]
[1757336759715,0.49535142,112240.0,112230.0,0.38189856]
[1757336759928,0.1351209,112240.0,112230.0,0.38189856]
[1757336760563,0.49848142,112240.0,112230.0,0.21143974]
[1757336760724,0.49535142,112240.0,112230.0,0.58221856]
[1757336760925,0.1351209,112240.0,112230.0,0.58221856]
[1757336761106,0.49535142,112240.0,112230.0,0.58221856]
[1757336761817,0.1351209,112240.0,112230.0,0.58221856]
[1757336762265,0.49535142,112240.0,112230.0,0.58221856]
[1757336763047,0.50044142,112240.0,112230.0,0.58221856]
[1757336763253,0.49848142,112240.0,112230.0,0.58221856]
[1757336764047,0.49535142,112240.0,112230.0,0.58221856]
[1757336764762,0.1351209,112240.0,112230.0,0.58200956]
[1757336765067,0.49535142,112240.0,112230.0,0.58200956]
[1757336766423,0.49848142,112240.0,112230.0,0.58200956]
[1757336767158,0.50044142,112240.0,112230.0,0.43216956]
[1757336767364,0.50044142,112240.0,112230.0,0.58200956]
[1757336768693,0.1402109,112240.0,112230.0,0.58200956]
[1757336768900,0.50044142,112240.0,112230.0,0.58200956]
[1757336769245,0.1402109,112240.0,112230.0,0.58200956]
[1757336769455,0.1382509,112240.0,112230.0,0.58200956]
[1757336769660,0.49535142,112240.0,112230.0,0.58200956]
[1757336769960,0.12692065,112240.0,112230.0,1.03144168]
[1757336770143,0.27857384,112250.0,112240.0,0.74]
[1757336770362,0.27857384,112250.0,112240.0,0.98171599]
[1757336771254,0.27857384,112250.0,112240.0,1.00844349]
[1757336772236,0.27857384,112250.0,112240.0,1.04726349]
[1757336772639,0.28257384,112250.0,112240.0,1.04726349]
[1757336774198,0.18711104,112260.0,112250.0,0.61093882]
[1757336774451,0.18711104,112260.0,112250.0,1.06629481]
[1757336774652,0.18711104,112260.0,112250.0,1.10736556]
[1757336774976,0.18711104,112260.0,112250.0,1.1340922]
[1757336775617,0.19011104,112260.0,112250.0,1.1340922]
[1757336776063,0.19011104,112260.0,112250.0,1.10736556]
[1757336776216,0.18711104,112260.0,112250.0,1.10736556]
[1757336777574,0.18711104,112260.0,112250.0,0.95768556]
[1757336777787,0.18711104,112260.0,112250.0,1.10736556]
[1757336778426,0.18811104,112260.0,112250.0,1.10736556]
[1757336780019,0.18811104,112260.0,112250.0,0.95768556]
[1757336780219,0.18811104,112260.0,112250.0,1.10732556]
[1757336781132,0.54834156,112260.0,112250.0,1.10732556]
[1757336781793,0.18811104,112260.0,112250.0,1.10732556]
[1757336781996,0.54834156,112260.0,112250.0,1.10732556]
[1757336782582,0.18811104,112260.0,112250.0,1.10732556]
[1757336782788,0.54834156,112260.0,112250.0,1.10732556]
[1757336783581,0.54834156,112260.0,112250.0,1.10736556]
[1757336784008,0.18811104,112260.0,112250.0,1.10736556]
[1757336784228,0.54834156,112260.0,112250.0,1.10736556]
[1757336784445,0.18811104,112260.0,112250.0,1.10736556]
[1757336784627,0.54834156,112260.0,112250.0,1.10736556]
[1757336786043,0.18811104,112260.0,112250.0,1.10736556]
[1757336786251,0.54834156,112260.0,112250.0,1.10736556]
[1757336786669,0.18811104,112260.0,112250.0,1.10736556]
[1757336787088,0.17665822,112260.0,112250.0,1.14980556]
[1757336787304,0.00306643,112270.0,112260.0,0.76093882]
[1757336787485,0.42582143,112280.0,112270.0,0.59]
[1757336787758,0.42582143,112280.0,112270.0,0.83183599]
[1757336788775,0.42628558,112280.0,112270.0,0.83183599]
[1757336788974,0.7865161,112280.0,112270.0,0.85277481]
[1757336789182,0.42628558,112280.0,112270.0,0.85277481]
[1757336789977,0.7865161,112280.0,112270.0,0.85277481]
[1757336790750,0.42628558,112280.0,112270.0,0.85277481]
[1757336790947,0.7875161,112280.0,112270.0,0.85277481]
[1757336791576,0.7875161,112280.0,112270.0,0.86162221]
[1757336792018,0.42728558,112280.0,112270.0,0.86162221]
[1757336792740,0.7875161,112280.0,112270.0,0.86162221]
[1757336792988,0.42728558,112280.0,112270.0,0.86162221]
[1757336793406,0.7905861,112280.0,112270.0,0.69076339]
[1757336793651,0.7926761,112280.0,112270.0,1.09555599]
[1757336793967,0.7926761,112280.0,112270.0,0.83235599]
[1757336794191,0.43244558,112280.0,112270.0,0.83235599]
[1757336794422,1.15221004,112280.0,112270.0,0.83235599]
[1757336795466,0.43244558,112280.0,112270.0,0.83235599]
[1757336795677,1.15221004,112280.0,112270.0,0.83235599]
[1757336796470,0.79023781,112280.0,112270.0,0.83235599]
[1757336796693,0.79232781,112280.0,112270.0,0.83235599]
[1757336797494,1.15221004,112280.0,112270.0,0.83235599]
[1757336798354,0.43244558,112280.0,112270.0,0.83235599]
[1757336798788,0.78716781,112280.0,112270.0,0.83235599]
[1757336798998,0.43035558,112280.0,112270.0,0.83235599]
[1757336799419,0.42728558,112280.0,112270.0,0.83235599]
[1757336799632,0.43035558,112280.0,112270.0,0.83235599]
[1757336799847,0.79023781,112280.0,112270.0,0.83235599]
[1757336800052,0.43035558,112280.0,112270.0,0.83235599]
[1757336800284,0.43244558,112280.0,112270.0,0.83235599]
[1757336800496,0.79232781,112280.0,112270.0,0.83235599]
[1757336800957,0.43244558,112280.0,112270.0,0.83235599]
[1757336801173,0.79232781,112280.0,112270.0,0.83235599]
[1757336801724,0.42728558,112280.0,112270.0,0.83235599]
[1757336802545,1.14705004,112280.0,112270.0,0.83235599]
[1757336802783,0.42728558,112280.0,112270.0,0.83235599]
[1757336803196,0.24911429,112280.0,112270.0,0.89573481]
[1757336803406,0.38618563,112280.0,112270.0,0.89573481]
[1757336803609,0.17458074,112280.0,112270.0,0.89573481]
[1757336803765,0.35270685,112280.0,112270.0,0.89573481]
[1757336804182,0.16393641,112280.0,112270.0,0.89573481]
[1757336804382,0.32325115,112280.0,112270.0,5.89573481]
[1757336804987,0.32325115,112280.0,112270.0,5.89673481]
[1757336805181,0.1014939,112280.0,112270.0,5.89673481]
[1757336805387,0.17860896,112290.0,112280.0,0.42093882]
[1757336805601,0.17860896,112290.0,112280.0,0.55537856]
[1757336806546,0.53849119,112290.0,112280.0,0.55537856]
[1757336806750,0.89837342,112290.0,112280.0,0.68944498]
[1757336806951,0.90353342,112290.0,112280.0,0.53168498]
[1757336807168,0.18167896,112290.0,112280.0,0.68944498]
[1757336807373,0.17860896,112290.0,112280.0,0.68944498]
[1757336807753,0.53849119,112290.0,112280.0,0.68944498]
[1757336808389,0.17860896,112290.0,112280.0,0.68944498]
[1757336809080,0.53849119,112290.0,112280.0,0.68944498]
[1757336809681,0.17860896,112290.0,112280.0,0.68944498]
[1757336810096,0.53849119,112290.0,112280.0,0.68944498]
[1757336810535,0.17860896,112290.0,112280.0,1.02944498]
[1757336810749,0.53849119,112290.0,112280.0,1.02944498]
[1757336810973,0.17860896,112290.0,112280.0,1.02944498]
[1757336811176,0.53849119,112290.0,112280.0,1.02944498]
[1757336811406,0.17860896,112290.0,112280.0,1.02944498]
[1757336812934,0.54152119,112290.0,112280.0,0.53168498]
[1757336813144,0.18375896,112290.0,112280.0,0.69056498]
[1757336813379,0.54364119,112290.0,112280.0,0.69056498]
[1757336813635,0.53849119,112290.0,112280.0,0.69056498]
[1757336814435,0.54152119,112290.0,112280.0,0.69056498]
[1757336814639,0.54152119,112290.0,112280.0,0.53168498]
[1757336814851,0.18163896,112290.0,112280.0,0.69080498]
[1757336815258,0.54152119,112290.0,112280.0,0.69080498]
[1757336815459,0.53849119,112290.0,112280.0,0.69080498]
[1757336815671,0.17860896,112290.0,112280.0,0.69080498]
[1757336815853,0.53849119,112290.0,112280.0,0.69080498]
[1757336816004,0.17860896,112290.0,112280.0,0.69080498]
[1757336816448,0.53849119,112290.0,112280.0,0.69080498]
[1757336816645,0.17860896,112290.0,112280.0,0.69080498]
[1757336816822,0.54364119,112290.0,112280.0,0.69080498]
[1757336817318,0.18163896,112290.0,112280.0,0.69080498]
[1757336817492,0.90352342,112290.0,112280.0,0.44199974]
[1757336817724,0.90352342,112290.0,112280.0,0.60151974]
[1757336818642,0.18375896,112290.0,112280.0,0.60151974]
[1757336818865,0.54364119,112290.0,112280.0,0.60151974]
[1757336819252,0.90352342,112290.0,112280.0,0.60251974]
[1757336819454,0.54364119,112290.0,112280.0,0.60251974]
[1757336819660,0.18375896,112290.0,112280.0,0.60251974]
[1757336819985,0.17814197,112270.0,112260.0,0.47738721]
[1757336820181,0.18329197,112270.0,112260.0,0.72940735]
[1757336820391,0.18329197,112270.0,112260.0,0.56078014]
[1757336820617,0.5431742,112270.0,112260.0,0.56078014]
[1757336820828,0.17815784,112260.0,112250.0,0.3184]
[1757336821034,0.17815784,112260.0,112250.0,0.47816]
[1757336821467,0.53804007,112260.0,112250.0,0.47816]
[1757336821683,0.17815784,112260.0,112250.0,0.57007599]
[1757336822349,0.17815784,112260.0,112250.0,0.91007599]
[1757336822561,0.17815784,112260.0,112250.0,0.94987599]
[1757336822775,0.17815784,112260.0,112250.0,0.97660114]
[1757336822959,0.17815784,112260.0,112250.0,0.98565314]
[1757336823170,0.17715784,112260.0,112250.0,0.98565314]
[1757336823750,0.17515784,112260.0,112250.0,1.02538105]
[1757336824401,0.17515784,112260.0,112250.0,0.86562105]
[1757336824625,0.9000723,112260.0,112250.0,0.60697314]
[1757336824828,0.9000723,112260.0,112250.0,0.57119599]
[1757336825031,0.54019007,112260.0,112250.0,0.57119599]
[1757336825232,0.17515784,112260.0,112250.0,0.57319599]
[1757336827483,0.17515784,112260.0,112250.0,5.57319599]
[1757336827710,0.17515784,112260.0,112250.0,5.95299599]
[1757336827945,0.17515784,112260.0,112250.0,1.16671599]
[1757336828152,0.17515784,112260.0,112250.0,1.12691599]
[1757336829043,0.17515784,112260.0,112250.0,1.16652365]
[1757336833825,0.17515784,112260.0,112250.0,1.18437365]
[1757336834119,0.17515784,112260.0,112250.0,1.16652365]
[1757336834748,0.17515784,112260.0,112250.0,1.19324957]
[1757336836042,0.17815784,112260.0,112250.0,1.36418839]
[1757336837451,0.17815784,112260.0,112250.0,1.40398839]
[1757336837871,0.17815784,112260.0,112250.0,1.24310839]
[1757336838087,0.17815784,112260.0,112250.0,1.36618839]
[1757336838791,0.17815784,112260.0,112250.0,1.18236957]
[1757336839057,0.17815784,112260.0,112250.0,1.34524957]
[1757336841198,0.18332784,112260.0,112250.0,1.18236957]
[1757336841405,0.18332784,112260.0,112250.0,1.34504957]
[1757336841619,0.18116784,112260.0,112250.0,1.34504957]
[1757336842739,0.18332784,112260.0,112250.0,0.84236957]
[1757336842955,0.18332784,112260.0,112250.0,1.00496957]
[1757336843161,0.17815784,112260.0,112250.0,1.00496957]
[1757336843795,0.17815784,112260.0,112250.0,1.02281957]
[1757336844004,0.17815784,112260.0,112250.0,1.54496957]
[1757336847366,0.17815784,112260.0,112250.0,6.60737839]
[1757336849681,0.14893387,112260.0,112250.0,6.60737839]
[1757336857172,0.14893387,112260.0,112250.0,6.18236957]
[1757336857408,0.14893387,112260.0,112250.0,1.34520957]
[1757336859410,0.14893387,112260.0,112250.0,6.34520957]
[1757336859853,0.14893387,112260.0,112250.0,6.38667957]
[1757336860466,0.14893387,112260.0,112250.0,6.40761839]
[1757336860911,0.14893387,112260.0,112250.0,6.38631957]
[1757336861293,0.17860618,112270.0,112260.0,0.39]
[1757336861489,0.17860618,112270.0,112260.0,0.64439599]
[1757336864112,0.17960618,112270.0,112260.0,0.67111913]
[1757336864531,0.18060618,112270.0,112260.0,0.67111913]
[1757336865279,0.17860618,112270.0,112260.0,0.67111913]
[1757336868754,0.17860618,112270.0,112260.0,5.69305795]
[1757336868970,0.00046421,112270.0,112260.0,5.73452795]
[1757336869178,0.00046421,112270.0,112260.0,5.78452795]
[1757336869387,0.00046421,112270.0,112260.0,5.78552795]
[1757336871181,0.17860618,112270.0,112260.0,5.78552795]
[1757336872627,0.17860618,112270.0,112260.0,5.73552795]
[1757336872831,0.17860618,112270.0,112260.0,5.78552795]
[1757336873862,0.17860618,112270.0,112260.0,5.73552795]
[1757336874079,0.17860618,112270.0,112260.0,5.78552795]
[1757336874287,0.17860618,112270.0,112260.0,5.78468795]
[1757336874484,0.17860618,112270.0,112260.0,5.62304795]
[1757336874700,0.17860618,112270.0,112260.0,5.78456795]
[1757336875170,0.17860618,112270.0,112260.0,5.62304795]
[1757336875390,0.17860618,112270.0,112260.0,5.78452795]
[1757336877212,0.17860618,112270.0,112260.0,5.73452795]
[1757336877436,0.17860618,112270.0,112260.0,5.78452795]
[1757336877870,0.17860618,112270.0,112260.0,5.62304795]
[1757336878084,0.17860618,112270.0,112260.0,5.73460795]
[1757336878298,0.17860618,112270.0,112260.0,5.57304795]
[1757336878718,0.17860618,112270.0,112260.0,5.69305795]
[1757336883467,0.17860618,112270.0,112260.0,5.73502795]
[1757336883897,0.17860896,112290.0,112280.0,0.6]
[1757336884101,0.17860896,112290.0,112280.0,0.9214798]
[1757336884497,0.17860896,112290.0,112280.0,0.94241862]
[1757336885417,0.17860896,112290.0,112280.0,0.96913648]
[1757336887139,0.17860896,112290.0,112280.0,1.00979551]
[1757336887572,0.17960896,112290.0,112280.0,1.00979551]
[1757336888829,0.17960896,112290.0,112280.0,1.27299551]
[1757336891775,0.17960896,112290.0,112280.0,1.27231551]